Cogmind - Beta 10.2 @@@ ROGUE MODE // 2021.02.20 @ 21:18:35 Player: Tone Result: Establishing 0b11! Performance ------------- Evolutions (9) 4500 Regions Visited (30) 6000 Robots Destroyed (59) 295 Value Destroyed (1957) 1957 Prototype IDs (83) 1660 Alien Tech Used (2) 400 Bonus (24725) 24725 TOTAL SCORE: 39537 Bonus ------- Pacifist 1125 Aligned with FarCom 300 Met MAIN.C 5000 Destroyed MAIN.C Shell 5000 Destroyed MAIN.C 10000 Met Architect 300 Win 3000 Cogmind --------- Core Integrity 1121/1600 Matter 280/300 Energy 54/100 System Corruption 9% Temperature Cool (0) Movement Core (400) Ox7 Location 0b11 Command Parts ------- > --- POWER (2) -------- (None) > --- PROPULSION (6) --- Impulse Thruster Array Impulse Thruster Array Experimental Q-thruster Experimental Q-thruster > --- UTILITY (15) ----- Experimental Terrain Scan Processor Experimental Melee Analysis Suite Experimental Melee Analysis Suite Experimental Melee Analysis Suite Experimental Armor Integrity Analyzer Femtoactuators Experimental ECM Suite Advanced Reaction Control System Experimental Propulsion Shielding Experimental Force Field > --- WEAPON (2) ------- Plasma Lance Plasma Lance > --- INVENTORY (4) ---- Energy Well (500) Energy Well (500) Energy Well (419) Peak State ------------ > --- POWER ------------ Mini Fusion Reactor Mini Fusion Reactor > --- PROPULSION ------- Impulse Thruster Array Impulse Thruster Array Experimental Q-thruster Experimental Q-thruster > --- UTILITY ---------- Experimental Terrain Scan Processor Experimental Melee Analysis Suite Experimental Melee Analysis Suite Experimental Melee Analysis Suite Experimental Armor Integrity Analyzer Femtoactuators Advanced Reaction Control System Experimental Phase Shifter Experimental Propulsion Shielding Experimental Propulsion Shielding Experimental Utility Shielding Experimental Utility Shielding Powered Armor Powered Armor Experimental Force Field > --- WEAPON ----------- Plasma Lance Plasma Lance > --- INVENTORY -------- Energy Well Experimental Terrain Scanner Experimental ECM Suite Transdimensional Reconstructor [Rating: 198] Favorites ----------- Power Mini Fusion Reactor Power Core Micro Fission Core Reactor Mini Fusion Reactor Propulsion Field Propulsion Array Flight Unit Field Propulsion Array Utility Advanced Hacking Suite Device Advanced Transmission Jammer Storage Large Storage Unit Processor Experimental Signal Interpreter Hackware Advanced Hacking Suite Protection Experimental Utility Shielding Weapon Advanced Plasma Cannon Energy Cannon Advanced Plasma Cannon Launcher Mini Smartbomb Launcher Piercing Weapon Plasma Lance Build | -11 -10 -10 -10 -9 -8 -8 -7 -7 -7 -6 -6 -6 -5 -5 -5 -5 -5 -4 -4 -4 -4 -4 -4 -3 -3 -3 -2 -1 -1 -1 ------- Run | Scr Mat Min Exi Min Mat Sto Fac Was Fac Fac Was Fac Fac Was Fac Upp Upp Fac Was Fac Upp Upp Zhi Pro Res Arm Res Acc Com Ac0 Slots Evolved 18 | . . . . . 4 . 2 . . 2 . . 2 . . . . 2 . . . . . . 2 . 2 2 . . Power 1 | . . . . . . . . . . . . . . . . . . . . . . . . . . . . 1 . . Propulsion 4 | . . . . . 1 . . . . 1 . . . . . . . . . . . . . . 2 . . . . . Utility 13 | . . . . . 3 . 2 . . 1 . . 2 . . . . 2 . . . . . . . . 2 1 . . Weapon . | . . . . . . . . . . . . . . . . . . . . . . . . . . . . . . . Parts Attached 138 | . . . . . . . 4 1 6 18 2 7 11 . 3 . . 4 . 8 12 . 3 . 3 11 13 5 26 1 Power 6 | . . . . . . . . . . . . 1 . . . . . 1 . . 1 . . . . . 1 1 1 . Engine . | . . . . . . . . . . . . . . . . . . . . . . . . . . . . . . . Core 2 | . . . . . . . . . . . . 1 . . . . . 1 . . . . . . . . . . . . Reactor 4 | . . . . . . . . . . . . . . . . . . . . . 1 . . . . . 1 1 1 . Propulsion 24 | . . . . . . . 4 1 3 4 1 1 2 . . . . 2 . . . . 1 . . 1 4 . . . Treads . | . . . . . . . . . . . . . . . . . . . . . . . . . . . . . . . Leg . | . . . . . . . . . . . . . . . . . . . . . . . . . . . . . . . Wheel . | . . . . . . . . . . . . . . . . . . . . . . . . . . . . . . . Hover . | . . . . . . . . . . . . . . . . . . . . . . . . . . . . . . . Flight 24 | . . . . . . . 4 1 3 4 1 1 2 . . . . 2 . . . . 1 . . 1 4 . . . Utility 61 | . . . . . . . . . 3 4 1 2 9 . 3 . . 1 . 2 2 . . . 1 6 3 3 20 1 Device 26 | . . . . . . . . . . . . 2 5 . 1 . . . . 1 2 . . . . 1 1 1 11 1 Storage 4 | . . . . . . . . . . . 1 . 1 . . . . . . 1 . . . . . 1 . . . . Processor 6 | . . . . . . . . . . . . . 1 . . . . . . . . . . . . . 1 2 2 . Hackware 15 | . . . . . . . . . 3 4 . . 2 . 2 . . 1 . . . . . . . 3 . . . . Protection 10 | . . . . . . . . . . . . . . . . . . . . . . . . . 1 1 1 . 7 . Artifact . | . . . . . . . . . . . . . . . . . . . . . . . . . . . . . . . Weapon 47 | . . . . . . . . . . 10 . 3 . . . . . . . 6 9 . 2 . 2 4 5 1 5 . Energy Gun . | . . . . . . . . . . . . . . . . . . . . . . . . . . . . . . . Energy Cannon 32 | . . . . . . . . . . 9 . 2 . . . . . . . 3 6 . 1 . 1 2 4 1 3 . Ballistic Gun . | . . . . . . . . . . . . . . . . . . . . . . . . . . . . . . . Ballistic Cannon . | . . . . . . . . . . . . . . . . . . . . . . . . . . . . . . . Launcher 7 | . . . . . . . . . . 1 . 1 . . . . . . . 1 2 . . . . 2 . . . . Special Weapon . | . . . . . . . . . . . . . . . . . . . . . . . . . . . . . . . Impact Weapon . | . . . . . . . . . . . . . . . . . . . . . . . . . . . . . . . Slashing Weapon . | . . . . . . . . . . . . . . . . . . . . . . . . . . . . . . . Piercing Weapon 8 | . . . . . . . . . . . . . . . . . . . . 2 1 . 1 . 1 . 1 . 2 . Special Melee Weapon . | . . . . . . . . . . . . . . . . . . . . . . . . . . . . . . . Unidentified Prototypes 2 | . . . . . . . . . . . . . . . . . . . . . . . . . . . . . 1 1 Parts Lost 15 | . . . . . . . . . 1 . . . . . 1 . . . . . 3 . . 1 . . . . 5 4 Power 2 | . . . . . . . . . . . . . . . . . . . . . . . . . . . . . 1 1 Propulsion . | . . . . . . . . . . . . . . . . . . . . . . . . . . . . . . . Utility 13 | . . . . . . . . . 1 . . . . . 1 . . . . . 3 . . 1 . . . . 4 3 Weapon . | . . . . . . . . . . . . . . . . . . . . . . . . . . . . . . . Highest Loss Streak 4 | . . . . . . . . . 1 . . . . . 1 . . . . . 2 . . 1 . . . . 3 4 Average Slot Usage (%) 61 | . . . . . . . 1 7 23 47 66 75 75 88 87 88 88 82 84 80 77 68 65 65 57 79 82 90 88 65 Core 1 | . . . . . . . . . . . . 5 5 5 5 5 5 5 5 5 5 . . . . . . . . . Reactor 2 | . . . . . . . . . . . . . . . . . . . . . . 5 5 5 4 4 3 8 6 . Flight 11 | . . . . . . . 1 7 13 12 14 12 10 11 11 11 11 9 10 10 10 10 10 10 9 11 12 16 16 16 Device 5 | . . . . . . . . . . . . 3 5 5 6 11 11 10 10 8 6 5 5 5 4 5 7 10 15 14 Storage 3 | . . . . . . . . . . . 4 . 1 5 5 5 5 5 5 8 10 5 5 5 4 5 8 8 4 . Processor 3 | . . . . . . . . . . . . . . 5 5 5 5 5 5 5 5 5 5 5 4 3 3 4 15 20 Hackware 24 | . . . . . . . . . 9 31 40 40 36 41 38 35 35 35 36 36 29 26 26 23 19 31 30 27 10 . Protection 2 | . . . . . . . . . . . . . . . . . . . . . . . . . . 4 8 8 12 6 Energy Cannon 2 | . . . . . . . . . . . . 4 5 5 5 5 5 5 5 1 1 5 1 5 3 3 1 3 1 . Launcher 1 | . . . . . . . . . . 2 6 6 5 5 5 5 5 5 5 2 4 5 5 5 . . . . . . Piercing Weapon 1 | . . . . . . . . . . . . . . . . . . . . 1 2 . . . 3 4 4 4 6 8 Naked Turns 1788 | . 67 51 164 54 162 86 1204 . . . . . . . . . . . . . . . . . . . . . . . Heaviest Build 71 | . . . . . . . . . . 12 8 19 36 35 36 36 36 36 36 46 46 37 37 37 37 54 55 64 71 24 Greatest Support 77 | 3 3 3 3 3 3 3 6 6 12 23 23 46 46 46 46 46 46 46 46 46 46 46 50 50 50 77 77 70 70 62 Greatest Overweight (x) 7 | . . . . . . . . . . 1 . . . . . . . . . . . . . . . . . . 1 7 Average Overweight (x) . | . . . . . . . . . . . . . . . . . . . . . . . . . . . . . . . Largest Inventory Capacity 16 | 4 4 4 4 4 4 4 4 4 4 4 4 4 10 10 10 10 10 10 10 16 16 10 10 10 10 16 16 16 16 4 Average Capacity 8 | 4 4 4 4 4 4 4 4 4 4 4 4 4 6 10 10 10 10 10 10 14 15 10 10 10 10 11 16 16 11 4 Most Carried 16 | . . . 2 2 2 3 4 4 4 4 4 4 5 5 8 7 7 10 10 14 13 10 10 9 10 13 16 16 16 4 Average Carried 7 | . . . . 2 2 2 3 3 3 3 3 3 4 5 6 7 7 8 10 11 11 10 9 9 8 9 11 14 10 3 Final Capacity 16 | 4 4 4 4 4 4 4 4 4 4 4 4 4 10 10 10 10 10 10 10 16 10 10 10 10 10 16 16 16 4 4 Final Carried 16 | . . . 2 2 2 3 4 4 1 4 3 4 5 5 7 7 7 10 10 12 10 10 9 9 9 12 16 16 4 3 Class Distribution -------------------- 21% | Wizard-Scout 21% | Wizard-Mutant 16% | Mutant 12% | Machinist-Ninja 11% | Wizard-Ninja 10% | Hacker-Mutant 4% | Machinist-Mutant Dominant Class ---------------- Mutant | -10/Materials Mutant | -10/Mines Mutant | -10/Exiles Mutant | -9/Mines Mutant | -8/Materials Mutant | -8/Storage Mutant | -7/Factory Mutant | -7/Waste Hacker-Mutant | -7/Factory Wizard-Mutant | -6/Factory Wizard-Mutant | -6/Waste Wizard-Scout | -6/Factory Wizard-Scout | -5/Factory Wizard-Scout | -5/Waste Wizard-Scout | -5/Factory Wizard-Mutant | -5/Upper Caves Wizard-Mutant | -5/Upper Caves Wizard-Scout | -4/Factory Wizard-Scout | -4/Waste Wizard-Scout | -4/Factory Wizard-Mutant | -4/Upper Caves Wizard-Mutant | -4/Upper Caves Wizard-Mutant | -4/Zhirov Wizard-Mutant | -3/Proximity Caves Machinist-Mutant | -3/Research Wizard-Mutant | -3/Armory Wizard-Ninja | -2/Research Machinist-Ninja | -1/Access Machinist-Ninja | -1/Command Machinist-Sprinter | -1/Access_0 Resources | -11 -10 -10 -10 -9 -8 -8 -7 -7 -7 -6 -6 -6 -5 -5 -5 -5 -5 -4 -4 -4 -4 -4 -4 -3 -3 -3 -2 -1 -1 -1 ----------- Run | Scr Mat Min Exi Min Mat Sto Fac Was Fac Fac Was Fac Fac Was Fac Upp Upp Fac Was Fac Upp Upp Zhi Pro Res Arm Res Acc Com Ac0 Matter Collected 2098 | 200 . . . . . . 26 . 69 163 . 72 273 . 28 12 20 . . . 377 . 80 78 42 104 206 70 278 . Remotely . | . . . . . . . . . . . . . . . . . . . . . . . . . . . . . . . Salvage Created 3262 | . . . . . . . . . . 57 . 72 52 . 28 . 56 . . . 243 . 238 36 167 75 408 346 1484 . Parts 145 | . . . . . . . . . . 7 . 10 11 . 3 . 6 . . . 4 . 2 6 7 8 21 24 36 . Haulers Intercepted . | . . . . . . . . . . . . . . . . . . . . . . . . . . . . . . . Recyclers Shooed 1 | . . . . . . . . . . . . . . . . . . . . . . . . . . . 1 . . . Parts Field Recycled . | . . . . . . . . . . . . . . . . . . . . . . . . . . . . . . . Retrieved Matter . | . . . . . . . . . . . . . . . . . . . . . . . . . . . . . . . Parts Self-Destructed 17 | . . . . . . . . . . . . . . . . . 6 . . . 6 . 1 4 . . . . . . Prevented . | . . . . . . . . . . . . . . . . . . . . . . . . . . . . . . . Kills | -11 -10 -10 -10 -9 -8 -8 -7 -7 -7 -6 -6 -6 -5 -5 -5 -5 -5 -4 -4 -4 -4 -4 -4 -3 -3 -3 -2 -1 -1 -1 ------- Run | Scr Mat Min Exi Min Mat Sto Fac Was Fac Fac Was Fac Fac Was Fac Upp Upp Fac Was Fac Upp Upp Zhi Pro Res Arm Res Acc Com Ac0 Combat Hostiles Destroyed 31 | . . . . . . . . . . 3 . 1 4 . . . 4 . . . 7 . . 4 . 3 . . 5 . Melee 5 | . . . . . . . . . . . . . . . . . . . . . . . . . . . . . 5 . Cannons 1 | . . . . . . . . . . . . 1 . . . . . . . . . . . . . . . . . . AOE 25 | . . . . . . . . . . 3 . . 4 . . . 4 . . . 7 . . 4 . 3 . . . . Classes Destroyed 9 | . . . . . . . . . . 2 . 2 . . . . . . . . . . . . 1 1 2 . 1 . Worker 2 | . . . . . . . . . . 1 . . . . . . . . . . . . . . . . . . 1 . Builder 3 | . . . . . . . . . . . . . . . . . . . . . . . . . . . 1 2 . . Recycler 3 | . . . . . . . . . . . . . . . . . . . . . . . . . 1 . 1 1 . . Mechanic 1 | . . . . . . . . . . . . . . . . . . . . . . . . . . . . . 1 . Operator 1 | . . . . . . . . . . . . . . . . . . . . . . . . . . . 1 . . . Watcher 18 | . . . . . . . . . . . . 1 1 . 1 . . . . . . . . . 1 2 5 5 2 . Swarmer 22 | . . . . . . . . . . 3 . . 4 . . . 4 . . . 7 . . 4 . . . . . . Saboteur 3 | . . . . . . . . . . . . . . . . . . . . . . . . . . 3 . . . . Programmer 4 | . . . . . . . . . . . . 1 . . . . . . . . . . . . . . . . 3 . Best Kill Streak 5 | . . . . . . . . . . 4 . 1 5 . 1 . 4 . . . 5 . . 4 1 3 1 2 3 . Combat Bots Only 5 | . . . . . . . . . . 3 . 1 4 . . . 4 . . . 5 . . 4 . 3 . . 2 . Max Kills in Single Turn 4 | . . . . . . . . . . 3 . 1 3 . 1 . 4 . . . 2 . . 1 1 1 1 1 1 . Gunslinging . | . . . . . . . . . . . . . . . . . . . . . . . . . . . . . . . Exploded 4 | . . . . . . . . . . 2 . . 3 . . . 4 . . . 2 . . 1 . 1 . . . . Melee 1 | . . . . . . . . . . . . . . . . . . . . . . . . . . . . . 1 . Uniques/NPCs Destroyed 2 | . . . . . . . . . . . . . . . . . . . . . . . . . . . . . 2 . MAIN.C Shell (-1/Command) MAIN.C (-1/Command) Combat | -11 -10 -10 -10 -9 -8 -8 -7 -7 -7 -6 -6 -6 -5 -5 -5 -5 -5 -4 -4 -4 -4 -4 -4 -3 -3 -3 -2 -1 -1 -1 -------- Run | Scr Mat Min Exi Min Mat Sto Fac Was Fac Fac Was Fac Fac Was Fac Upp Upp Fac Was Fac Upp Upp Zhi Pro Res Arm Res Acc Com Ac0 Damage Taken 4082 | . 38 . . . 108 287 310 . 385 17 . 58 . . 19 23 141 25 . . 151 22 . 84 . 239 82 . 1651 442 Core 1504 | . 38 . . . 108 287 292 . 302 17 . 15 . . 19 . 15 . . . 67 . . 23 . 27 30 . 121 143 Absorbed by Shields 199 | . . . . . . . . . . . . . . . . . . . . . . . . . . . . . 199 . Core Remaining (%) 77 | 100 . . . 84 . 28 . . 15 . . 96 . . . . 96 . . . . . . 92 . 97 97 . . 70 Volleys Fired 290 | . . . . . . . . . . 15 . 34 45 . 11 5 8 46 . 11 26 . 1 9 15 11 10 29 14 . Largest 1 | . . . . . . . . . . 1 . 1 1 . 1 1 1 1 . 1 1 . 1 1 1 1 1 1 1 . Hottest 98 | . . . . . . . . . . 98 . 98 98 . 98 98 98 98 . 98 98 . 98 98 98 98 98 98 98 . Shots Fired 294 | . . . . . . . . . . 15 . 37 45 . 11 5 8 46 . 11 27 . 1 9 15 11 10 29 14 . Gun . | . . . . . . . . . . . . . . . . . . . . . . . . . . . . . . . Cannon 275 | . . . . . . . . . . 13 . 37 45 . 11 5 7 46 . 11 20 . 1 4 15 7 10 29 14 . Launcher 19 | . . . . . . . . . . 2 . . . . . . 1 . . . 7 . . 5 . 4 . . . . Special . | . . . . . . . . . . . . . . . . . . . . . . . . . . . . . . . Kinetic . | . . . . . . . . . . . . . . . . . . . . . . . . . . . . . . . Thermal 275 | . . . . . . . . . . 13 . 37 45 . 11 5 7 46 . 11 20 . 1 4 15 7 10 29 14 . Explosive 19 | . . . . . . . . . . 2 . . . . . . 1 . . . 7 . . 5 . 4 . . . . Electromagnetic . | . . . . . . . . . . . . . . . . . . . . . . . . . . . . . . . Robot Hit Streak 4 | . . . . . . . . . . . . 4 1 . 2 . . 1 . . 2 . . . 3 4 . . . . Robot Miss Streak 4 | . . . . . . . . . . 1 . 3 4 . . . . 1 . . . . . . 1 . . . . . Penetration Max . | . . . . . . . . . . . . . . . . . . . . . . . . . . . . . . . Secondary Targets . | . . . . . . . . . . . . . . . . . . . . . . . . . . . . . . . Shots Hit Robots 119 | . . . . . . . . . . . . 6 1 . 2 . . 1 . . 7 . 5 . 4 8 19 11 55 . Core Hits 102 | . . . . . 1 4 4 . . 6 . 2 5 . 1 . 4 1 . . 12 . 2 10 2 6 9 8 25 . Critical Hits 8 | . . . . . . . . . . . . . . . . . . . . . . . . . . . 1 1 6 . Critical Kills . | . . . . . . . . . . . . . . . . . . . . . . . . . . . . . . . Critical Parts Destroyed 6 | . . . . . . . . . . . . . . . . . . . . . . . . . . . 1 1 4 . Melee Attacks 280 | . . . . . . . . . . . . . . . . . . . . . 8 . 5 . 14 27 71 64 89 2 Impact . | . . . . . . . . . . . . . . . . . . . . . . . . . . . . . . . Slashing . | . . . . . . . . . . . . . . . . . . . . . . . . . . . . . . . Piercing 280 | . . . . . . . . . . . . . . . . . . . . . 8 . 5 . 14 27 71 64 89 2 Sneak Attacks 14 | . . . . . . . . . . . . . . . . . . . . . . . . . 1 1 4 5 3 . Combat Hostiles 1 | . . . . . . . . . . . . . . . . . . . . . . . . . . . . . 1 . Follow-up Attacks 8 | . . . . . . . . . . . . . . . . . . . . . . . . . . . . . 8 . Damage Inflicted 11712 | . . . . . 6 21 33 . . 195 . 250 512 . 64 . 326 65 . . 1376 . 666 532 276 533 1329 1251 4277 . Guns . | . . . . . . . . . . . . . . . . . . . . . . . . . . . . . . . Cannons 505 | . . . . . . . . . . . . 250 95 . 64 . . 65 . . . . . . 31 . . . . . Explosions 2559 | . . . . . . . . . . 195 . . 417 . . . 326 . . . 813 . . 532 . 276 . . . . Melee 8588 | . . . . . . . . . . . . . . . . . . . . . 563 . 666 . 245 257 1329 1251 4277 . Ramming 60 | . . . . . 6 21 33 . . . . . . . . . . . . . . . . . . . . . . . Kinetic . | . . . . . . . . . . . . . . . . . . . . . . . . . . . . . . . Thermal 505 | . . . . . . . . . . . . 250 95 . 64 . . 65 . . . . . . 31 . . . . . Explosive 2559 | . . . . . . . . . . 195 . . 417 . . . 326 . . . 813 . . 532 . 276 . . . . Electromagnetic . | . . . . . . . . . . . . . . . . . . . . . . . . . . . . . . . Impact . | . . . . . . . . . . . . . . . . . . . . . . . . . . . . . . . Slashing . | . . . . . . . . . . . . . . . . . . . . . . . . . . . . . . . Piercing 8588 | . . . . . . . . . . . . . . . . . . . . . 563 . 666 . 245 257 1329 1251 4277 . Highest Corruption 10 | . . . . . . 1 2 2 6 . 9 10 . . . . . . 6 6 8 8 8 8 . . . . 9 9 Average Corruption 6 | . . . . . . 1 1 2 4 . 9 9 . . . . . . 6 6 6 8 8 8 . . . . 7 9 Corruption Purged . | . . . . . . . . . . . . . . . . . . . . . . . . . . . . . . . Effects 152 | . . . . . . . 5 . 33 . 1 55 . . . . . . 2 9 12 3 5 7 . . . . 19 1 Message Errors 36 | . . . . . . . 2 . 11 . . 10 . . . . . . . 2 2 2 1 1 . . . . 5 . Matter Fused 28 | . . . . . . . . . 5 . . 10 . . . . . . . 4 2 . 3 1 . . . . 3 . Heat Flow Errors 15 | . . . . . . . 1 . 8 . . . . . . . . . 2 . . 1 1 1 . . . . 1 . Energy Discharges 9 | . . . . . . . 1 . 5 . . 2 . . . . . . . . 1 . . . . . . . . . Parts Rejected 2 | . . . . . . . . . 1 . . . . . . . . . . . . . . . . . . . . 1 Data Loss (minor) 17 | . . . . . . . 1 . 3 . 1 3 . . . . . . . 1 4 . . 3 . . . . 1 . Data Loss (major) 8 | . . . . . . . . . . . . 4 . . . . . . . 2 1 . . . . . . . 1 . Misfires 4 | . . . . . . . . . . . . 3 . . . . . . . . 1 . . . . . . . . . Misdirections 14 | . . . . . . . . . . . . 14 . . . . . . . . . . . . . . . . . . Targeting Errors 19 | . . . . . . . . . . . . 9 . . . . . . . . 1 . . 1 . . . . 8 . Overload Shots . | . . . . . . . . . . . . . . . . . . . . . . . . . . . . . . . Overflow Damage 1306 | . . . . . . . . . . . . 8 . . . . . . . . 395 . 332 26 . 12 243 19 271 . Projectiles 8 | . . . . . . . . . . . . 8 . . . . . . . . . . . . . . . . . . Explosions 166 | . . . . . . . . . . . . . . . . . . . . . 128 . . 26 . 12 . . . . Melee 1132 | . . . . . . . . . . . . . . . . . . . . . 267 . 332 . . . 243 19 271 . Knockbacks . | . . . . . . . . . . . . . . . . . . . . . . . . . . . . . . . Impact . | . . . . . . . . . . . . . . . . . . . . . . . . . . . . . . . Kinetic . | . . . . . . . . . . . . . . . . . . . . . . . . . . . . . . . Secondary . | . . . . . . . . . . . . . . . . . . . . . . . . . . . . . . . Self-Inflicted Damage 45 | . . . . . 3 9 15 . . . . . . . . . . . . . 18 . . . . . . . . . Shots 1 | . . . . . . . . . . . . . . . . . . . . . 1 . . . . . . . . . Rammed 15 | . . . . . 2 7 6 . . . . . . . . . . . . . . . . . . . . . . . Targets Rammed 15 | . . . . . 2 7 6 . . . . . . . . . . . . . . . . . . . . . . . Kicked . | . . . . . . . . . . . . . . . . . . . . . . . . . . . . . . . Crushed . | . . . . . . . . . . . . . . . . . . . . . . . . . . . . . . . Highest Temperature 320 | . . . . . . . 180 . 231 52 . 185 186 . 94 188 184 234 102 240 189 90 146 162 213 98 192 320 297 . Average Temperature 64 | . . . . . . . 97 . 91 23 . 54 42 . 36 84 77 75 50 88 79 48 64 74 91 37 63 55 74 . Received Heat Transfer 512 | . 21 . . . 63 99 69 . 69 . . . . . . 9 18 . . . . 12 . . . 33 18 . 83 18 Effects 2 | . . . . . . . . . . . . . . . . . . . . . . . . . . . . 1 1 . Shutdowns 1 | . . . . . . . . . . . . . . . . . . . . . . . . . . . . 1 . . Energy Bleed 1 | . . . . . . . . . . . . . . . . . . . . . . . . . . . . . 1 . Siege Activations . | . . . . . . . . . . . . . . . . . . . . . . . . . . . . . . . Robots Corrupted . | . . . . . . . . . . . . . . . . . . . . . . . . . . . . . . . Combat Hostiles . | . . . . . . . . . . . . . . . . . . . . . . . . . . . . . . . Parts Fried . | . . . . . . . . . . . . . . . . . . . . . . . . . . . . . . . Impact Corruptions . | . . . . . . . . . . . . . . . . . . . . . . . . . . . . . . . Robots Melted . | . . . . . . . . . . . . . . . . . . . . . . . . . . . . . . . Combat Hostiles . | . . . . . . . . . . . . . . . . . . . . . . . . . . . . . . . Parts Melted 1 | . . . . . . . . . . . . . . . 1 . . . . . . . . . . . . . . . Heat Transferred 750 | . . . . . . . . . . . . 350 150 . 100 . . 100 . . . . . . 50 . . . . . Parts Sabotaged . | . . . . . . . . . . . . . . . . . . . . . . . . . . . . . . . Parts Stolen . | . . . . . . . . . . . . . . . . . . . . . . . . . . . . . . . Parts Stripped . | . . . . . . . . . . . . . . . . . . . . . . . . . . . . . . . Power Chain Reactions . | . . . . . . . . . . . . . . . . . . . . . . . . . . . . . . . Missiles Intercepted . | . . . . . . . . . . . . . . . . . . . . . . . . . . . . . . . Alert | -11 -10 -10 -10 -9 -8 -8 -7 -7 -7 -6 -6 -6 -5 -5 -5 -5 -5 -4 -4 -4 -4 -4 -4 -3 -3 -3 -2 -1 -1 -1 ------- Run | Scr Mat Min Exi Min Mat Sto Fac Was Fac Fac Was Fac Fac Was Fac Upp Upp Fac Was Fac Upp Upp Zhi Pro Res Arm Res Acc Com Ac0 Peak Influence 831 | . 100 39 . . 117 162 415 175 500 402 35 447 462 82 525 . . 408 11 431 . . . . 485 831 723 450 258 . Initial 435 | . . 39 . . . 49 73 145 122 203 5 17 14 62 57 . . 85 11 . . . . . 54 158 435 433 33 . Average 164 | . 42 39 . . 32 86 125 151 277 82 17 121 55 62 88 . . 146 4 301 . . . . 371 322 235 76 143 . Maximum Alert Level 3 | . . . . . . . 2 . 2 2 . 2 2 . 2 . . 2 . 2 . . . . 2 3 3 2 1 . Low Security (%) 67 | 100 100 100 . 100 100 100 79 100 42 78 100 68 96 100 98 . . 83 100 27 . . . . 7 20 63 93 53 . Level 1 17 | . . . . . . . 13 . 14 21 . 22 3 . . . . . . . . . . . 37 72 5 . 46 . Level 2 14 | . . . . . . . 7 . 42 . . 9 . . 1 . . 16 . 72 . . . . 55 . 28 6 . . Level 3 . | . . . . . . . . . . . . . . . . . . . . . . . . . . 6 2 . . . Level 4 . | . . . . . . . . . . . . . . . . . . . . . . . . . . . . . . . Level 5 . | . . . . . . . . . . . . . . . . . . . . . . . . . . . . . . . High Security . | . . . . . . . . . . . . . . . . . . . . . . . . . . . . . . . Max Security . | . . . . . . . . . . . . . . . . . . . . . . . . . . . . . . . Squads Dispatched 43 | . 2 . . . . 2 4 . 7 8 . 5 2 . 3 . . 1 . . . . . . 2 1 1 2 3 . Investigation 17 | . 2 . . . . 1 1 . 3 4 . 2 . . 2 . . . . . . . . . 1 . . . 1 . Extermination 18 | . . . . . . . 1 . 3 2 . 2 1 . 1 . . 1 . . . . . . 1 1 1 2 2 . Reinforcement 7 | . . . . . . 1 2 . 1 1 . 1 1 . . . . . . . . . . . . . . . . . Assault 1 | . . . . . . . . . . 1 . . . . . . . . . . . . . . . . . . . . Garrison . | . . . . . . . . . . . . . . . . . . . . . . . . . . . . . . . Intercept . | . . . . . . . . . . . . . . . . . . . . . . . . . . . . . . . Construction Impeded . | . . . . . . . . . . . . . . . . . . . . . . . . . . . . . . . Haulers Reinforced . | . . . . . . . . . . . . . . . . . . . . . . . . . . . . . . . Stealth | -11 -10 -10 -10 -9 -8 -8 -7 -7 -7 -6 -6 -6 -5 -5 -5 -5 -5 -4 -4 -4 -4 -4 -4 -3 -3 -3 -2 -1 -1 -1 --------- Run | Scr Mat Min Exi Min Mat Sto Fac Was Fac Fac Was Fac Fac Was Fac Upp Upp Fac Was Fac Upp Upp Zhi Pro Res Arm Res Acc Com Ac0 Distress Signals 33 | . 1 . . . 1 . 1 . . . . . . . . . . . . . . . . . . 3 1 2 24 . Communications Jammed 64 | . . . . . . . . . . . . . . . . . . 1 . . . . . . . 7 16 39 1 . Distress Signals 58 | . . . . . . . . . . . . . . . . . . . . . . . . . . 7 16 34 1 . Times Spotted 239 | . 5 . . . 14 14 14 6 29 10 3 5 9 6 6 1 5 4 5 1 4 2 . 1 5 29 29 11 16 5 Peak Tracking Total 12 | . 3 . . . 12 12 3 6 6 3 4 3 2 6 3 1 5 2 5 1 3 2 . 3 3 5 5 3 5 4 Tactical Retreats 46 | . 1 . . . 1 1 6 . 10 1 . . . . 1 1 1 1 . . . 1 . . . 9 6 1 5 . Traps | -11 -10 -10 -10 -9 -8 -8 -7 -7 -7 -6 -6 -6 -5 -5 -5 -5 -5 -4 -4 -4 -4 -4 -4 -3 -3 -3 -2 -1 -1 -1 ------- Run | Scr Mat Min Exi Min Mat Sto Fac Was Fac Fac Was Fac Fac Was Fac Upp Upp Fac Was Fac Upp Upp Zhi Pro Res Arm Res Acc Com Ac0 Traps Triggered 17 | . . . . . . 1 4 . 1 4 . 1 1 . 1 . . 1 . . 1 . . . 1 . . . 1 . Indirectly . | . . . . . . . . . . . . . . . . . . . . . . . . . . . . . . . Trap Hack Attempts . | . . . . . . . . . . . . . . . . . . . . . . . . . . . . . . . Triggered . | . . . . . . . . . . . . . . . . . . . . . . . . . . . . . . . Disarmed . | . . . . . . . . . . . . . . . . . . . . . . . . . . . . . . . Reprogrammed . | . . . . . . . . . . . . . . . . . . . . . . . . . . . . . . . Reused . | . . . . . . . . . . . . . . . . . . . . . . . . . . . . . . . Traps Extracted . | . . . . . . . . . . . . . . . . . . . . . . . . . . . . . . . Installed . | . . . . . . . . . . . . . . . . . . . . . . . . . . . . . . . Triggered 1 | . . . . . . . . . . . . . . . . 1 . . . . . . . . . . . . . . Machines | -11 -10 -10 -10 -9 -8 -8 -7 -7 -7 -6 -6 -6 -5 -5 -5 -5 -5 -4 -4 -4 -4 -4 -4 -3 -3 -3 -2 -1 -1 -1 ---------- Run | Scr Mat Min Exi Min Mat Sto Fac Was Fac Fac Was Fac Fac Was Fac Upp Upp Fac Was Fac Upp Upp Zhi Pro Res Arm Res Acc Com Ac0 Machines Disabled 12 | . . . . . . . . . . . . 1 6 . . . . . . . . . 1 . . 2 . . 1 1 Max in Single Turn 3 | . . . . . . . . . . . . 1 3 . . . . . . . . . 1 . . 1 . . 1 1 Garrison Access 22 | . . . . . . . 1 . 2 3 . 1 2 . 3 . . 2 . 1 . . . . . . 4 3 . . Machines Sabotaged . | . . . . . . . . . . . . . . . . . . . . . . . . . . . . . . . Garrisons Compromised . | . . . . . . . . . . . . . . . . . . . . . . . . . . . . . . . Overloaded Fab Kills . | . . . . . . . . . . . . . . . . . . . . . . . . . . . . . . . Fab Network Shutdowns 11 | . . . . . . . 1 . 1 1 . 1 1 . 1 . . 1 . 1 . . . . . 1 1 1 . . Hacking | -11 -10 -10 -10 -9 -8 -8 -7 -7 -7 -6 -6 -6 -5 -5 -5 -5 -5 -4 -4 -4 -4 -4 -4 -3 -3 -3 -2 -1 -1 -1 --------- Run | Scr Mat Min Exi Min Mat Sto Fac Was Fac Fac Was Fac Fac Was Fac Upp Upp Fac Was Fac Upp Upp Zhi Pro Res Arm Res Acc Com Ac0 Machines Accessed 205 | . 5 . 2 . 3 2 12 . 26 25 . 20 15 . 14 1 . 14 . 5 . 1 4 . 6 6 17 18 9 . Terminals 115 | . 4 . . . 3 2 8 . 15 13 . 11 10 . 7 1 . 4 . 1 . 1 . . 4 3 8 13 7 . Fabricators 29 | . . . . . . . 1 . 3 5 . 3 2 . 3 . . 3 . 1 . . . . 1 3 2 2 . . Repair Stations 13 | . . . . . . . . . 3 1 . 2 1 . . . . 1 . 1 . . . . 1 . 2 . 1 . Recycling Units 11 | . 1 . . . . . . . 1 1 . 2 . . 1 . . 3 . 1 . . . . . . . . 1 . Scanalyzers 9 | . . . . . . . 2 . 2 2 . 1 . . . . . 1 . . . . . . . . 1 . . . Garrison Access 22 | . . . . . . . 1 . 2 3 . 1 2 . 3 . . 2 . 1 . . . . . . 4 3 . . Total Hacks 705 | . 13 . 2 . 5 7 32 . 57 85 . 87 60 . 51 1 . 45 . 23 . 1 17 . 22 36 70 68 23 . Successful 535 | . 6 . 2 . 2 1 15 . 31 68 . 58 52 . 42 1 . 43 . 19 . 1 17 . 14 33 61 48 21 . Failed 165 | . 7 . . . 2 6 17 . 26 16 . 28 7 . 9 . . 2 . 4 . . . . 8 3 8 20 2 . Catastrophic 25 | . 1 . . . 2 . 3 . 8 1 . 2 . . 1 . . . . . . . . . 2 . . 5 . . Database Lockouts 5 | . . . . . 1 . . . . 1 . 1 1 . . . . . . . . . . . . . 1 . . . Manual 368 | . 13 . 1 . 5 7 15 . 27 41 . 46 33 . 33 . . 19 . 14 . . . . 14 13 30 45 12 . Terminals 422 | . 12 . . . 5 7 20 . 34 45 . 59 43 . 32 1 . 17 . 11 . 1 . . 15 15 36 52 17 . Fabricators 151 | . . . . . . . 4 . 7 24 . 15 13 . 15 . . 12 . 5 . . . . 5 21 17 13 . . Repair Stations 42 | . . . . . . . . . 5 5 . 4 2 . . . . 6 . 4 . . . . 2 . 10 . 4 . Recycling Units 16 | . 1 . . . . . . . 1 2 . 3 . . 1 . . 4 . 2 . . . . . . . . 2 . Scanalyzers 29 | . . . . . . . 5 . 7 6 . 4 . . . . . 4 . . . . . . . . 3 . . . Garrison Access 26 | . . . . . . . 3 . 3 3 . 2 2 . 3 . . 2 . 1 . . . . . . 4 3 . . Terminal Hacks 191 | . 3 . 2 . 1 1 4 . 6 23 . 25 21 . 17 1 . 9 . 5 . 1 17 . 3 8 16 21 7 . Record 8 | . . . 1 . . . . . . . . . . . . 1 . . . . . 1 5 . . . . . . . Part Schematic 39 | . 2 . . . 1 1 1 . 1 3 . 6 4 . 5 . . . . 2 . . 4 . . 1 2 6 . . Robot Analysis 8 | . . . . . . . . . . . . . . . . . . . . . . . 4 . . . . 1 3 . Prototype ID Bank 15 | . . . . . . . . . . . . 2 1 . 4 . . . . . . . 4 . . . 4 . . . Open Door 4 | . . . . . . . . . . . . . . . . . . . . . . . . . . . . 3 1 . Level Access Points 2 | . . . . . . . . . . . . 1 . . . . . . . . . . . . . . 1 . . . Branch Access Points 4 | . 1 . . . . . . . . . . . . . 1 . . . . 1 . . . . 1 . . . . . Emergency Access Points 1 | . . . . . . . . . . . . 1 . . . . . . . . . . . . . . . . . . Machine Index 8 | . . . . . . . . . . . . . 1 . 1 . . 1 . 1 . . . . 1 . 1 1 1 . Terminal Index 8 | . . . . . . . 1 . 1 1 . 1 1 . 1 . . . . . . . . . . 1 . 1 . . Fabricator Index 5 | . . . . . . . 1 . . 1 . 1 . . . . . . . . . . . . 1 1 . . . . Repair Station Index 1 | . . . . . . . . . . . . 1 . . . . . . . . . . . . . . . . . . Garrison Index 1 | . . . . . . . . . . . . 1 . . . . . . . . . . . . . . . . . . Alert Level 1 | . . . . . . . . . . . . . . . . . . . . . . . . . . . 1 . . . Unreport Threat 25 | . . . . . . . . . 1 4 . 3 3 . 3 . . 2 . . . . . . . . 3 6 . . Locate Traps 28 | . . . . . . . 1 . 3 3 . 3 5 . 2 . . 3 . 1 . . . . . 3 3 1 . . Recall Investigation 5 | . . . . . . . . . . 4 . . . . . . . . . . . . . . . . . . 1 . Recall Extermination 8 | . . . . . . . . . . 2 . 1 1 . . . . 1 . . . . . . . 1 . 2 . . Recall Reinforcements 4 | . . . . . . . . . . 2 . 1 1 . . . . . . . . . . . . . . . . . Recall Assault 1 | . . . . . . . . . . 1 . . . . . . . . . . . . . . . . . . . . Hauler Manifests 1 | . . . . . . . . . . . . . . . . . . . . . . . . . . . 1 . . . Zone Layout 12 | . . . . . . . . . . 2 . 3 4 . . . . 2 . . . . . . . 1 . . . . EX-Prototype ID Bank 1 | . . . 1 . . . . . . . . . . . . . . . . . . . . . . . . . . . Disengage Seal 1 | . . . . . . . . . . . . . . . . . . . . . . . . . . . . . 1 . Fabricator Hacks 108 | . . . . . . . 3 . 6 17 . 11 10 . 9 . . 7 . 3 . . . . 2 17 13 10 . . Network Status 6 | . . . . . . . . . . 2 . . . . 1 . . . . . . . . . . . 3 . . . Load Schematic 46 | . . . . . . . 1 . 3 7 . 6 4 . 3 . . 3 . 1 . . . . 1 7 5 5 . . Build 56 | . . . . . . . 2 . 3 8 . 5 6 . 5 . . 4 . 2 . . . . 1 10 5 5 . . Repair Station Hacks 39 | . . . . . . . . . 3 4 . 4 2 . . . . 6 . 4 . . . . 2 . 10 . 4 . Scan Component 20 | . . . . . . . . . 2 2 . 2 1 . . . . 3 . 2 . . . . 1 . 5 . 2 . Repair 19 | . . . . . . . . . 1 2 . 2 1 . . . . 3 . 2 . . . . 1 . 5 . 2 . Recycling Unit Hacks 8 | . . . . . . . . . . . . 2 . . 1 . . 3 . 1 . . . . . . . . 1 . Process 1 | . . . . . . . . . . . . . . . . . . 1 . . . . . . . . . . . . Report Inventory 7 | . . . . . . . . . . . . 2 . . 1 . . 2 . 1 . . . . . . . . 1 . Scanalyzer 23 | . . . . . . . 2 . 7 5 . 3 . . . . . 3 . . . . . . . . 3 . . . Insert Component 9 | . . . . . . . 2 . 3 1 . 1 . . . . . 1 . . . . . . . . 1 . . . Analyze 14 | . . . . . . . . . 4 4 . 2 . . . . . 2 . . . . . . . . 2 . . . Garrison Access Hacks 22 | . . . . . . . 1 . 2 3 . 1 2 . 3 . . 2 . 1 . . . . . . 4 3 . . Seal Access 22 | . . . . . . . 1 . 2 3 . 1 2 . 3 . . 2 . 1 . . . . . . 4 3 . . Unauthorized Hacks 144 | . 3 . . . 1 . 5 . 7 16 . 12 17 . 12 . . 13 . 5 . . . . 7 8 15 14 9 . Terminals 100 | . 2 . . . 1 . 5 . 6 7 . 7 15 . 6 . . 7 . 3 . . . . 5 5 12 11 8 . Track 43 | . . . . . . . 3 . 4 2 . 2 8 . 2 . . 4 . 1 . . . . 1 1 5 5 5 . Assimilate 18 | . . . . . . . . . 1 3 . 3 2 . 1 . . 1 . . . . . . 1 1 2 3 . . Botnet 30 | . 2 . . . 1 . 2 . 1 2 . 2 4 . 1 . . 1 . 1 . . . . 2 2 4 3 2 . Disrupt 1 | . . . . . . . . . . . . . . . . . . . . . . . . . . . . . 1 . Operators 8 | . . . . . . . . . . . . . 1 . 2 . . 1 . 1 . . . . 1 1 1 . . . Fabricators 36 | . . . . . . . . . . 7 . 4 2 . 6 . . 5 . 1 . . . . 2 3 3 3 . . Report 2 | . . . . . . . . . . 1 . . . . 1 . . . . . . . . . . . . . . . Prioritize 13 | . . . . . . . . . . 3 . 1 1 . 2 . . 2 . . . . . . 1 1 1 1 . . Siphon 21 | . . . . . . . . . . 3 . 3 1 . 3 . . 3 . 1 . . . . 1 2 2 2 . . Repair Stations . | . . . . . . . . . . . . . . . . . . . . . . . . . . . . . . . Recycling Units 7 | . 1 . . . . . . . 1 1 . 1 . . . . . 1 . 1 . . . . . . . . 1 . Recyclers 6 | . . . . . . . . . 1 1 . 1 . . . . . 1 . 1 . . . . . . . . 1 . Tunnel 1 | . 1 . . . . . . . . . . . . . . . . . . . . . . . . . . . . . Scanalyzers 1 | . . . . . . . . . . 1 . . . . . . . . . . . . . . . . . . . . Extract 1 | . . . . . . . . . . 1 . . . . . . . . . . . . . . . . . . . . Garrison Access . | . . . . . . . . . . . . . . . . . . . . . . . . . . . . . . . Data Cores Recovered 1 | . . . . . . . . . . . . . . . . . . . . . . . . . . . 1 . . . Used . | . . . . . . . . . . . . . . . . . . . . . . . . . . . . . . . Hacking Detections 129 | . 4 . . . 2 2 11 . 22 15 . 12 6 . 9 . . 5 . 1 . . . . 5 5 10 14 6 . Full Trace Events 14 | . 2 . . . . 1 1 . 3 2 . 1 . . 2 . . . . . . . . . 1 . . . 1 . Feedback Events 3 | . . . . . . 1 . . . . . . . . 1 . . . . . . . . . . . . . 1 . Corruption 1 | . . . . . . 1 . . . . . . . . . . . . . . . . . . . . . . . . Hackware Fried 2 | . . . . . . . . . . . . . . . 1 . . . . . . . . . . . . . 1 . Feedback Blocked . | . . . . . . . . . . . . . . . . . . . . . . . . . . . . . . . Robot Schematics Acquired . | . . . . . . . . . . . . . . . . . . . . . . . . . . . . . . . Robots Built . | . . . . . . . . . . . . . . . . . . . . . . . . . . . . . . . Matter . | . . . . . . . . . . . . . . . . . . . . . . . . . . . . . . . Time . | . . . . . . . . . . . . . . . . . . . . . . . . . . . . . . . Total Robot Build Rating . | . . . . . . . . . . . . . . . . . . . . . . . . . . . . . . . Part Schematics Acquired 52 | . 2 . . . 1 1 1 . 4 10 . 7 4 . 5 . . 1 . 2 . . 4 . . 1 3 6 . . Parts Built 56 | . . . . . . . 2 . 3 9 . 5 5 . 5 . . 3 . 2 . . . . 1 10 5 6 . . Matter 10808 | . . . . . . . 372 . 438 1108 . 802 888 . 733 . . 718 . 526 . . . . 213 2328 1357 1325 . . Time 2738 | . . . . . . . 98 . 108 304 . 198 149 . 341 . . 197 . 124 . . . . 38 668 275 238 . . Total Part Build Rating 323 | . . . . . . . 4 . 9 49 . 31 25 . 21 . . 22 . 14 . . . . 5 60 41 42 . . Parts Repaired 19 | . . . . . . . . . 1 2 . 2 1 . . . . 3 . 2 . . . . 1 . 5 . 2 . Time 609 | . . . . . . . . . 25 102 . 76 31 . . . . 90 . 59 . . . . 44 . 130 . 52 . Parts Recycled . | . . . . . . . . . . . . . . . . . . . . . . . . . . . . . . . Recycled Matter 14 | . . . . . . . . . . . . . . . . . . 14 . . . . . . . . . . . . Retrieved Matter . | . . . . . . . . . . . . . . . . . . . . . . . . . . . . . . . Retrieved Components . | . . . . . . . . . . . . . . . . . . . . . . . . . . . . . . . Parts Scanalyzed 9 | . . . . . . . 2 . 3 1 . 1 . . . . . 1 . . . . . . . . 1 . . . Part Schematics Acquired 7 | . . . . . . . . . 3 1 . 1 . . . . . 1 . . . . . . . . 1 . . . Parts Damaged 1 | . . . . . . . . . . . . 1 . . . . . . . . . . . . . . . . . . Bothacking | -11 -10 -10 -10 -9 -8 -8 -7 -7 -7 -6 -6 -6 -5 -5 -5 -5 -5 -4 -4 -4 -4 -4 -4 -3 -3 -3 -2 -1 -1 -1 ------------ Run | Scr Mat Min Exi Min Mat Sto Fac Was Fac Fac Was Fac Fac Was Fac Upp Upp Fac Was Fac Upp Upp Zhi Pro Res Arm Res Acc Com Ac0 Used RIF Installer . | . . . . . . . . . . . . . . . . . . . . . . . . . . . . . . . Robots Hacked . | . . . . . . . . . . . . . . . . . . . . . . . . . . . . . . . Non-combat . | . . . . . . . . . . . . . . . . . . . . . . . . . . . . . . . Combat . | . . . . . . . . . . . . . . . . . . . . . . . . . . . . . . . Robot Hacks Applied . | . . . . . . . . . . . . . . . . . . . . . . . . . . . . . . . Relay Couplers Released . | . . . . . . . . . . . . . . . . . . . . . . . . . . . . . . . Robots Rewired . | . . . . . . . . . . . . . . . . . . . . . . . . . . . . . . . Allies Hacked 2 | . . . . . . . . . . . . . . . . . . . . . . . . . . 1 . . 1 . Hacks Repelled 1 | . . . . . . . . . . . . . . . . . . . . . . . . . . 1 . . . . Allies | -11 -10 -10 -10 -9 -8 -8 -7 -7 -7 -6 -6 -6 -5 -5 -5 -5 -5 -4 -4 -4 -4 -4 -4 -3 -3 -3 -2 -1 -1 -1 -------- Run | Scr Mat Min Exi Min Mat Sto Fac Was Fac Fac Was Fac Fac Was Fac Upp Upp Fac Was Fac Upp Upp Zhi Pro Res Arm Res Acc Com Ac0 Total Allies 20 | . . . . . . . . 1 1 3 . 5 2 . 1 . . 1 . . . . . . 1 1 1 3 . . Largest Group 5 | . . . . . . . . 1 1 2 1 5 2 1 1 . . 1 1 . . . . . 1 1 1 3 1 . Highest-Rated Group 145 | . . . . . . . . 31 26 52 26 145 36 26 10 . . 26 26 . . . . . 44 26 44 114 44 . Highest-Rated Ally 44 | . . . . . . . . 31 26 26 26 31 26 26 10 . . 26 26 . . . . . 44 26 44 44 44 . Total Orders 23 | . . . . . . . . . . 2 . . 5 . . . . . . . . . . . 4 . . 12 . . STAY 12 | . . . . . . . . . . 1 . . 3 . . . . . . . . . . . 2 . . 6 . . FOLLOW 11 | . . . . . . . . . . 1 . . 2 . . . . . . . . . . . 2 . . 6 . . Ally Attacks 5 | . . . . . . . . . . . . 5 . . . . . . . . . . . . . . . . . . Total Damage 87 | . . . . . . . . . . . . 87 . . . . . . . . . . . . . . . . . . Kills . | . . . . . . . . . . . . . . . . . . . . . . . . . . . . . . . Allies Corrupted 1 | . . . . . . . . . . . . . . . . . . . . . . . . . . 1 . . . . Allies Melted . | . . . . . . . . . . . . . . . . . . . . . . . . . . . . . . . Intel | -11 -10 -10 -10 -9 -8 -8 -7 -7 -7 -6 -6 -6 -5 -5 -5 -5 -5 -4 -4 -4 -4 -4 -4 -3 -3 -3 -2 -1 -1 -1 ------- Run | Scr Mat Min Exi Min Mat Sto Fac Was Fac Fac Was Fac Fac Was Fac Upp Upp Fac Was Fac Upp Upp Zhi Pro Res Arm Res Acc Com Ac0 Robot Analysis Total 8 | . . . . . . . . . . . . . . . . . . . . . . . 4 . . . . 1 3 . Derelict Logs Recovered 6 | . . 1 . 2 . . . . . . . . . . . 2 1 . . . . . . . . . . . . . Drone Launches . | . . . . . . . . . . . . . . . . . . . . . . . . . . . . . . . Drone Recoveries . | . . . . . . . . . . . . . . . . . . . . . . . . . . . . . . . Exploration | -11 -10 -10 -10 -9 -8 -8 -7 -7 -7 -6 -6 -6 -5 -5 -5 -5 -5 -4 -4 -4 -4 -4 -4 -3 -3 -3 -2 -1 -1 -1 ------------- Run | Scr Mat Min Exi Min Mat Sto Fac Was Fac Fac Was Fac Fac Was Fac Upp Upp Fac Was Fac Upp Upp Zhi Pro Res Arm Res Acc Com Ac0 Turns Passed 16265 | 17 67 51 164 54 162 86 1408 37 1614 1894 46 1071 862 178 525 116 156 913 57 382 345 82 108 164 619 1070 1539 1480 964 34 Spaces Moved 30100 | 34 131 98 324 107 257 156 2368 91 3767 4586 74 2351 1590 173 1231 285 369 1388 104 669 640 221 236 312 853 1848 2535 1807 1437 58 Core 3113 | 34 131 98 324 107 257 156 2005 . . . . . . . . . . . . . . . . . . . . . . 1 Treads . | . . . . . . . . . . . . . . . . . . . . . . . . . . . . . . . Legs . | . . . . . . . . . . . . . . . . . . . . . . . . . . . . . . . Wheels . | . . . . . . . . . . . . . . . . . . . . . . . . . . . . . . . Hover . | . . . . . . . . . . . . . . . . . . . . . . . . . . . . . . . Flight 26987 | . . . . . . . 363 91 3767 4586 74 2351 1590 173 1231 285 369 1388 104 669 640 221 236 312 853 1848 2535 1807 1437 57 Fastest Speed 17 | 50 50 50 50 50 50 50 35 35 32 32 35 37 37 37 37 37 37 37 37 37 37 37 37 37 37 34 21 21 21 17 Average Speed 35 | 50 50 50 50 50 50 50 47 35 34 35 39 39 37 37 37 37 37 37 37 37 37 37 37 37 37 34 34 21 22 32 Slowest Speed 400 | 50 50 50 50 50 50 50 50 35 35 105 40 40 40 37 37 37 37 37 37 37 37 37 37 37 37 37 37 21 106 400 Overloaded Moves . | . . . . . . . . . . . . . . . . . . . . . . . . . . . . . . . Propulsion Burnouts . | . . . . . . . . . . . . . . . . . . . . . . . . . . . . . . . Robots Hopped 268 | . . . . . . . 2 . 78 51 . 37 15 1 7 . 1 15 1 4 . . . . 5 6 36 5 2 2 Cave-ins Triggered . | . . . . . . . . . . . . . . . . . . . . . . . . . . . . . . . Teleports 2 | . . . . . . . . . . . . . . . . . . . . . . . . . . . . . 1 1 Exploration Rate (%) 44 | 4 40 34 70 19 26 50 43 70 66 58 69 45 46 75 29 57 53 33 65 12 67 51 57 51 23 48 47 41 33 4 Regions Visited 30 Branch Regions 13 Pre-discovered Areas 5 | . 1 . 1 . . . . . . . . . . . . . . . . . . . 3 . . . . . . . Known Exits Taken 14 | . 1 . . . 1 1 . . . . . 1 . . 1 1 1 . . 1 1 1 1 1 1 . 1 . . . Unknown Exits Taken 8 | 1 . 1 1 1 . . . . 1 . . . . . . . . . . . . . . . . 1 . 1 1 . Scrap Searched 10 | . . . . . . . . . . . . . . . . 2 2 . . . 3 . . 3 . . . . . . Spaces Dug 314 | . . . . . . . . . . 11 . 23 35 . 8 2 4 40 . 5 13 . . 4 17 26 55 48 23 . Terrain Destroyed 612 | . . . . . . . . . . 26 . 29 79 . 9 5 26 42 . 10 106 . . 67 22 61 58 49 23 . Melee 140 | . . . . . . . . . . . . . . . . . . . . . 2 . . . 8 20 49 45 16 . Projectile 220 | . . . . . . . . . . 13 . 29 40 . 9 5 7 42 . 10 20 . . 4 14 7 9 4 7 . AOE 252 | . . . . . . . . . . 13 . . 39 . . . 19 . . . 84 . . 63 . 34 . . . . Terrain Rammed . | . . . . . . . . . . . . . . . . . . . . . . . . . . . . . . . Walls Destroyed . | . . . . . . . . . . . . . . . . . . . . . . . . . . . . . . . Machines Disabled . | . . . . . . . . . . . . . . . . . . . . . . . . . . . . . . . Actions | -11 -10 -10 -10 -9 -8 -8 -7 -7 -7 -6 -6 -6 -5 -5 -5 -5 -5 -4 -4 -4 -4 -4 -4 -3 -3 -3 -2 -1 -1 -1 --------- Run | Scr Mat Min Exi Min Mat Sto Fac Was Fac Fac Was Fac Fac Was Fac Upp Upp Fac Was Fac Upp Upp Zhi Pro Res Arm Res Acc Com Ac0 Total 34656 | 33 131 99 325 106 289 163 2646 95 3985 4796 91 2430 1800 285 1281 289 378 1726 120 789 713 220 248 349 1114 2211 3062 2779 2031 72 Wait 3903 | . 1 2 . . 31 . 258 . 283 172 13 67 157 114 31 . 3 292 18 95 15 . . 29 232 311 446 866 455 12 Move 29559 | 33 130 97 323 106 256 155 2364 90 3615 4490 73 2277 1560 170 1216 284 366 1359 101 660 639 220 235 311 842 1836 2468 1798 1432 53 Hop 246 | . . . . . . . 2 . 73 45 . 36 15 1 7 . 1 14 1 4 . . . . 5 5 30 3 2 2 Pick Up 89 | . . . 2 . . 1 6 2 1 10 1 4 5 . 3 . . 7 . 4 1 . 1 . 3 7 14 9 7 1 Fast Attach 38 | . . . . . . . 2 1 5 8 . 5 5 . 2 . . 3 . 1 . . 1 . . 3 1 . . 1 Attach 78 | . . . . . . . 1 . 1 10 2 2 2 . 1 . . 1 . 5 11 . 2 . 2 5 11 5 16 1 Detach 53 | . . . . . . . 1 . 2 9 . 1 3 . 2 . . . . 6 9 . 1 . . 3 5 2 9 . Swap 24 | . . . . . . . 1 . . . . . 4 . . . . . . 2 1 . . . 1 3 1 . 11 . Drop 58 | . . . . . . . 5 2 5 7 2 4 4 . . . . 4 . 1 3 . 2 . . . 5 3 10 1 Fire 290 | . . . . . . . . . . 15 . 34 45 . 11 5 8 46 . 11 26 . 1 9 15 11 10 29 14 . Melee 265 | . . . . . . . . . . . . . . . . . . . . . 8 . 5 . 14 27 71 64 75 1 Ram 15 | . . . . . 2 7 6 . . . . . . . . . . . . . . . . . . . . . . . Kick . | . . . . . . . . . . . . . . . . . . . . . . . . . . . . . . . Crush . | . . . . . . . . . . . . . . . . . . . . . . . . . . . . . . . Escape Stasis 38 | . . . . . . . . . . 30 . . . . 8 . . . . . . . . . . . . . . . Rewire . | . . . . . . . . . . . . . . . . . . . . . . . . . . . . . . . Trap . | . . . . . . . . . . . . . . . . . . . . . . . . . . . . . . . Miscellaneous . | . . . . . . . . . . . . . . . . . . . . . . . . . . . . . . . Route ------- -11/Scrapyard -10/Materials (discovered 2 exits: *Min x2) -10/Mines (discovered 2 exits: [*Mat] / *Exi) -10/Exiles -9/Mines -8/Materials (discovered 2 exits: *Fac / *Sto) -8/Storage -7/Factory -7/Waste -7/Factory (discovered 3 exits: *Fac x2 / [*Low]) -6/Factory (discovered 2 exits: *Fac x2) -6/Waste -6/Factory (discovered 4 exits: *Fac x4) -5/Factory (discovered 2 exits: *Upp x2) -5/Waste -5/Factory (discovered 3 exits: *Fac / *Upp x2) -5/Upper Caves -5/Upper Caves (discovered 2 exits: *Fac / *War) -4/Factory (discovered 2 exits: *Res x2) -4/Waste -4/Factory (discovered 4 exits: *Upp x2 / Ext x2) -4/Upper Caves -4/Upper Caves -4/Zhirov -3/Proximity Caves -3/Research (discovered 3 exits: *Arm / Qua x2) -3/Armory -2/Research (discovered 5 exits: *Acc x3 / [Tes x2]) -1/Access (discovered 2 exits: [Sur] / *Com) -1/Command (discovered 3 exits: [Sur x2] / [*Ac0]) -1/Access_0 0b11 Command History --------- Turn | Location | Event 2 | -11/Scrapyard | Discovered new exit (range 16) 18 | -11/Scrapyard | Entered Materials 51 | -10/Materials | Identified exit to Mines 85 | -10/Materials | Entered Mines 125 | -10/Mines | Discovered new exit (range 14) 126 | -10/Mines | Learned Materials security intel 134 | -10/Mines | Deemed a non-threat by the Exiles lab entrance 134 | -10/Mines | Discovered new exit (range 5) 136 | -10/Mines | Entered Exiles 149 | -10/Exiles | Met 8R-AWN 157 | -10/Exiles | Met EX-HEX 172 | -10/Exiles | Met EX-BIN 178 | -10/Exiles | Aligned with FarCom system 178 | -10/Exiles | Given EX-Vault access code 190 | -10/Exiles | Opened EX-Vault 202 | -10/Exiles | Warned to stay clear of 0b10 Research branches 218 | -10/Exiles | Learned location of Zion (-7) 219 | -10/Exiles | Met EX-DEC 265 | -10/Exiles | Discovered new exit (range 14) 300 | -10/Exiles | Entered Mines 301 | -9/Mines | Assembled infested the area 305 | -9/Mines | Build established: Mutant 306 | -9/Mines | Assisted by a Guerilla fighting off Assembled 308 | -9/Mines | Met a Derelict bent on vengeance 330 | -9/Mines | Discovered new exit (range 14) 350 | -9/Mines | Learned location of 1 exit from Materials 354 | -9/Mines | Entered Materials 354 | -8/Materials | Evolved 4 slots: Propulsion x1, Utility x3 355 | -8/Materials | Identified exit to Storage 356 | -8/Materials | Identified exit to Factory 481 | -8/Materials | Central database locked down 516 | -8/Materials | Entered Storage 589 | -8/Storage | Core integrity fell below 50% 600 | -8/Storage | Discovered exit to Factory (range 5) 602 | -8/Storage | Entered Factory 602 | -7/Factory | Evolved 2 slots: Utility x2 1680 | -7/Factory | Discovered new exit (range 15) 1715 | -7/Factory | Fabricated Imp. Flight Unit? 1805 | -7/Factory | Fabricated Imp. Flight Unit (x1) 1907 | -7/Factory | Local fabrication network quarantined 2010 | -7/Factory | Sucked down chute 2010 | -7/Factory | Entered Waste 2011 | -7/Waste | Met a frightened Derelict 2021 | -7/Waste | Spotted C-40 Crusher 2028 | -7/Waste | Spotted C-40 Crusher 2037 | -7/Waste | Spotted C-40 Crusher 2039 | -7/Waste | Spotted C-40 Crusher 2039 | -7/Waste | Spotted C-40 Crusher 2040 | -7/Waste | Spotted C-40 Crusher 2042 | -7/Waste | Discovered new exit (range 11) 2047 | -7/Waste | Entered Factory 2629 | -7/Factory | Fabricated Hacking Suite? 2717 | -7/Factory | Fabricated Hacking Suite (x1) 2852 | -7/Factory | Local fabrication network quarantined 2883 | -7/Factory | Fabricated Hacking Suite (x1) 2957 | -7/Factory | Core integrity fell below 50% 3018 | -7/Factory | Build established: Hacker-Mutant 3475 | -7/Factory | Repaired Imp. Flight Unit 3509 | -7/Factory | Discovered new exit (range 14) 3647 | -7/Factory | Discovered new exit (range 14) 3654 | -7/Factory | Discovered new exit (range 4) 3660 | -7/Factory | Core integrity fell below 20% 3661 | -7/Factory | Entered another Factory area 3661 | -6/Factory | Evolved 2 slots: Propulsion x1, Utility x1 3796 | -6/Factory | Repaired Imp. Flight Unit? 4007 | -6/Factory | Repaired Imp. Flight Unit? 4227 | -6/Factory | Fabricated Adv. System Shield (x1) 4231 | -6/Factory | Fabricated Imp. Hacking Suite? 4283 | -6/Factory | Fabricated Adv. System Shield? 4292 | -6/Factory | Fabricated Imp. Hacking Suite? 4495 | -6/Factory | Central database locked down 4751 | -6/Factory | Fabricated Adv. Plasma Cannon (x2) 4776 | -6/Factory | Fabricated Grenade Launcher (x1) 4779 | -6/Factory | Fabricated Field Propulsion Array? 4861 | -6/Factory | Build established: Wizard-Mutant 4896 | -6/Factory | Discovered new exit (range 16) 5054 | -6/Factory | Local fabrication network quarantined 5061 | -6/Factory | First assault squad dispatched 5406 | -6/Factory | Discovered new exit (range 15) 5555 | -6/Factory | Manually triggered Chute Trap 5555 | -6/Factory | Sucked down chute 5555 | -6/Factory | Entered Waste 5560 | -6/Waste | 1 allies followed down the chute 5570 | -6/Waste | EMP discharged 5570 | -6/Waste | Spotted C-40 Crusher 5573 | -6/Waste | Spotted C-40 Crusher 5577 | -6/Waste | Spotted C-40 Crusher 5581 | -6/Waste | Discovered new exit (range 16) 5582 | -6/Waste | Spotted C-40 Crusher 5601 | -6/Waste | Entered Factory 5623 | -6/Factory | Fabricated Mic. Fission Core (x2) 5651 | -6/Factory | Fabricated Mni. Smartbomb Launcher (x1) 5676 | -6/Factory | Fabricated Exp. Sensor Array? 5885 | -6/Factory | Fabricated Impulse Thruster Array? 5901 | -6/Factory | Local fabrication network quarantined 6193 | -6/Factory | System corruption reached 10% 6211 | -6/Factory | Identified exit to Factory 6292 | -6/Factory | Build established: Wizard-Scout 6376 | -6/Factory | Allied Derelicts emerged from ambush trap array 6395 | -6/Factory | Repaired Adv. Plasma Cannon? 6420 | -6/Factory | Repaired Field Propulsion Array 6645 | -6/Factory | Central database locked down 6672 | -6/Factory | Entered another Factory area 6672 | -5/Factory | Evolved 2 slots: Utility x2 6672 | -5/Factory | Discovered new exit (range 9) 6996 | -5/Factory | Repaired Field Propulsion Array 7244 | -5/Factory | Fabricated Lrg. Storage Unit (x1) 7249 | -5/Factory | Fabricated Adv. Hacking Suite? 7273 | -5/Factory | Fabricated Adv. Transmission Jammer (x1) 7300 | -5/Factory | Fabricated Adv. Hacking Suite? 7329 | -5/Factory | Fabricated Exp. Signal Interpreter? 7373 | -5/Factory | Discovered new exit (range 10) 7383 | -5/Factory | Local fabrication network quarantined 7413 | -5/Factory | Central database locked down 7534 | -5/Factory | Manually triggered Chute Trap 7534 | -5/Factory | Sucked down chute 7534 | -5/Factory | Entered Waste 7535 | -5/Waste | 2 allies followed down the chute 7537 | -5/Waste | Spotted C-40 Crusher 7592 | -5/Waste | Spotted C-40 Crusher 7681 | -5/Waste | Spotted C-40 Crusher 7681 | -5/Waste | Spotted C-40 Crusher 7693 | -5/Waste | Spotted C-40 Crusher 7708 | -5/Waste | Spotted C-40 Crusher 7708 | -5/Waste | Discovered new exit (range 11) 7712 | -5/Waste | Identified exit to Factory 7712 | -5/Waste | Entered Factory 7732 | -5/Factory | Identified exit to Upper Caves 7785 | -5/Factory | Fabricated Adv. Hacking Suite (x1) 7792 | -5/Factory | Fabricated Lrg. Storage Unit? 7813 | -5/Factory | Fabricated Adv. Hacking Suite (x1) 7847 | -5/Factory | Fabricated Lrg. Storage Unit? 7985 | -5/Factory | Fabricated Plasma Lance? 8012 | -5/Factory | Local fabrication network quarantined 8050 | -5/Factory | Adv. System Shield fried by hacking feedback 8148 | -5/Factory | Discovered new exit (range 8) 8237 | -5/Factory | Entered Upper Caves 8240 | -5/Upper Caves | Attracted the attention of an 0b10 checkpoint 8256 | -5/Upper Caves | Identified exit to Upper Caves 8258 | -5/Upper Caves | Encountered a Warlord checkpoint 8274 | -5/Upper Caves | Spotted B-75 Beast 8331 | -5/Upper Caves | Learned 8 Factory zone layouts 8353 | -5/Upper Caves | Entered another Upper Caves area 8355 | -5/Upper Caves | Attracted the attention of an 0b10 checkpoint 8362 | -5/Upper Caves | Discovered new exit (range 14) 8411 | -5/Upper Caves | Learned Factory garrison access intel 8449 | -5/Upper Caves | Discovered new exit (range 14) 8454 | -5/Upper Caves | Identified exit to Warlord 8508 | -5/Upper Caves | Identified exit to Factory 8509 | -5/Upper Caves | Entered Factory 8509 | -4/Factory | Evolved 2 slots: Utility x2 8511 | -4/Factory | Loaded intel: 4 garrison access locations 8624 | -4/Factory | Fabricated Exp. System Shield? 8857 | -4/Factory | Fabricated Plasma Lance? 8862 | -4/Factory | Discovered new exit (range 4) 8863 | -4/Factory | Identified exit to Research 8904 | -4/Factory | Fabricated Impulse Thruster Array (x1) 8912 | -4/Factory | Local fabrication network quarantined 9104 | -4/Factory | Repaired Mic. Fission Core 9136 | -4/Factory | Repaired Field Propulsion Array 9169 | -4/Factory | Repaired Field Propulsion Array 9403 | -4/Factory | Discovered exit to Research (range 16) 9422 | -4/Factory | Manually triggered Chute Trap 9422 | -4/Factory | Sucked down chute 9422 | -4/Factory | Entered Waste 9425 | -4/Waste | 3 allies followed down the chute 9430 | -4/Waste | Spotted C-40 Crusher 9432 | -4/Waste | Spotted C-40 Crusher 9432 | -4/Waste | Spotted C-40 Crusher 9432 | -4/Waste | Spotted C-40 Crusher 9437 | -4/Waste | EMP discharged 9462 | -4/Waste | Spotted C-40 Crusher 9465 | -4/Waste | Spotted C-40 Crusher 9472 | -4/Waste | Discovered new exit (range 11) 9478 | -4/Waste | Identified exit to Factory 9479 | -4/Waste | Entered Factory 9559 | -4/Factory | Fabricated Mni. Fusion Reactor (x1) 9584 | -4/Factory | Local fabrication network quarantined 9621 | -4/Factory | Fabricated Mni. Fusion Reactor (x1) 9680 | -4/Factory | Discovered new exit (range 7) 9682 | -4/Factory | Identified exit to Upper Caves 9720 | -4/Factory | Repaired Adv. Transmission Jammer 9750 | -4/Factory | Repaired Adv. Plasma Cannon 9809 | -4/Factory | Identified exit to Extension 9861 | -4/Factory | Entered Upper Caves 10196 | -4/Upper Caves | Discovered new exit (range 11) 10200 | -4/Upper Caves | Identified exit to Upper Caves 10206 | -4/Upper Caves | Entered another Upper Caves area 10212 | -4/Upper Caves | Encountered a Warlord checkpoint 10224 | -4/Upper Caves | Build established: Wizard-Mutant 10285 | -4/Upper Caves | Discovered new exit (range 8) 10288 | -4/Upper Caves | Identified exit to Zhirov 10288 | -4/Upper Caves | Entered Zhirov 10289 | -4/Zhirov | Discovered new exit (range 3) 10304 | -4/Zhirov | Learned location of Quarantine (-3) 10304 | -4/Zhirov | Learned location of Testing (-2) 10304 | -4/Zhirov | Learned location of Command (-1) 10316 | -4/Zhirov | Found Alien Artifact 10392 | -4/Zhirov | Cloak Generator disabled 10392 | -4/Zhirov | Attacked by Zhirov 10396 | -4/Zhirov | Identified exit to Proximity Caves 10396 | -4/Zhirov | Entered Proximity Caves 10556 | -3/Proximity Caves | Discovered exit to Research (range 10) 10560 | -3/Proximity Caves | Entered Research 10560 | -3/Research | Evolved 2 slots: Propulsion x2 10590 | -3/Research | Identified exit to Armory 10590 | -3/Research | Identified exit to Quarantine 10723 | -3/Research | Repaired Mni. Smartbomb Launcher 10791 | -3/Research | Build established: Machinist-Mutant 11109 | -3/Research | Fabricated Exp. Utility Shielding (x1) 11179 | -3/Research | Entered Armory 11233 | -3/Armory | Fabricated Adv. Hacking Suite (x1) 11270 | -3/Armory | Fabricated Adv. Hacking Suite (x1) 11439 | -3/Armory | Fabricated Exp. System Shield (x1) 11515 | -3/Armory | Fabricated Exp. Terrain Scanner (x1) 11608 | -3/Armory | Fabricated Exp. Melee Analysis Suite (x1) 11632 | -3/Armory | Fabricated Exp. Propulsion Shielding? 11701 | -3/Armory | Fabricated Exp. Melee Analysis Suite? 11743 | -3/Armory | Fabricated Exp. Propulsion Shielding? 11802 | -3/Armory | Build established: Wizard-Ninja 11841 | -3/Armory | Fabricated Exp. Melee Analysis Suite (x1) 12043 | -3/Armory | Fabricated Exp. Terrain Scan Processor? 12179 | -3/Armory | Local fabrication network quarantined 12229 | -3/Armory | Build established: Wizard-Mutant 12248 | -3/Armory | Discovered new exit (range 3) 12249 | -3/Armory | Entered Research 12249 | -2/Research | Evolved 2 slots: Utility x2 12421 | -2/Research | Identified exit to Access 12428 | -2/Research | Discovered new exit (range 28) 12484 | -2/Research | Discovered new exit (range 25) 12529 | -2/Research | Central database locked down 12720 | -2/Research | Build established: Wizard-Ninja 12919 | -2/Research | Repaired Adv. Plasma Cannon 12953 | -2/Research | Repaired Mni. Fusion Reactor 12979 | -2/Research | Repaired Exp. Propulsion Shielding 13096 | -2/Research | Found Prototype Device 13097 | -2/Research | Found Prototype Device 13106 | -2/Research | Identified Exp. Force Field (x2) 13168 | -2/Research | Repaired Plasma Lance? 13198 | -2/Research | Repaired Field Propulsion Array 13316 | -2/Research | Fabricated Femtoactuators? 13406 | -2/Research | Fabricated Exp. Q-thruster? 13421 | -2/Research | Fabricated Adv. Reaction Control System? 13507 | -2/Research | Fabricated Exp. Q-thruster? 13531 | -2/Research | Local fabrication network quarantined 13554 | -2/Research | Fabricated Exp. Utility Shielding? 13788 | -2/Research | Entered Access 13788 | -1/Access | Accompanied by 1 ally 13788 | -1/Access | Evolved 2 slots: Power x1, Utility x1 13873 | -1/Access | Discovered new exit (range 28) 14083 | -1/Access | Build established: Machinist-Ninja 14533 | -1/Access | Discovered new exit (range 25) 14826 | -1/Access | Fabricated Powered Armor (x2) 14888 | -1/Access | Fabricated Exp. ECM Suite (x1) 14962 | -1/Access | Fabricated Exp. Armor Integrity Analyzer (x1) 15056 | -1/Access | Fabricated Exp. Phase Shifter (x1) 15088 | -1/Access | Local fabrication network quarantined 15093 | -1/Access | Fabricated Exp. Force Field (x1) 15268 | -1/Access | Entered Command 15268 | -1/Command | Accompanied by 1 ally 15327 | -1/Command | Repaired Exp. Propulsion Shielding 15353 | -1/Command | Repaired Exp. Utility Shielding 15485 | -1/Command | Disengaged cave seal 15519 | -1/Command | Discovered new exit (range 28) 15521 | -1/Command | Adv. Hacking Suite fried by hacking feedback 15691 | -1/Command | Spotted Combat Programmer 15742 | -1/Command | Spotted M Guard 15742 | -1/Command | Spotted Combat Programmer 15797 | -1/Command | Spotted M Guard 15838 | -1/Command | Met MAIN.C 15838 | -1/Command | 0b10 Conduit disabled 15931 | -1/Command | Destroyed MAIN.C Shell 15933 | -1/Command | MAIN.C activated Command garrisons 15952 | -1/Command | Destroyed MAIN.C 15982 | -1/Command | Lost 3 parts (1p2u) 16022 | -1/Command | Discovered new exit (range 5) 16151 | -1/Command | Identified Transdimensional Reconstructor 16151 | -1/Command | Warped through subspace to slip node 16151 | -1/Command | Discovered new exit (range 5) 16232 | -1/Command | Entered Access_0 16233 | -1/Access_0 | Met Architect 16251 | -1/Access_0 | Found Alien Artifact 16251 | -1/Access_0 | Identified Hpw. Transdimensional Reconstructor 16251 | -1/Access_0 | Warped through subspace to slip node 16251 | -1/Access_0 | Discovered new exit (range 8) 16266 | *** | Establishing 0b11! Last Messages --------------- services than the architects. Too bad for you we can take things from here, and you are far too dangerous and unpredictable to let you continue any further. So it's about time we end this. 16234_ Enhanced Grunt springs to life. 16235_ A0_COM: INTRUDER ALERT. CALLING ALL ARCHITECTS. 16235_ Quantum Shear penetrates Wall. 16235_ Exp. Phase Shifter destroyed. 16240_ Workstation disabled. 16246_ Dropped Energy Well. 16247_ Extracted 83 energy. 16248_ Acquired Energy Well. 16249_ Exp. Terrain Scanner destroyed. 16249_ Penetrated by Quantum Shear. 16250_ System corrupted: Exp. Propulsion Shielding rejected. 16251_ Acquired Alien Artifact. 16251_ Identified Hpw. Transdimensional Reconstructor. 16251_ Warped through subspace, drawn to slip node. 16251_ EXIT=FOUND [Achievement: True Flier] Map ----- +----------------------------------------------------+ | | | | | | | | | | | | | | | | | | | | | | | | | | | | | | | | | ?????????????????????????????????????????????????? | | ?????????????????????????????????????????????????? | | ?????????????????????????????????????????????????? | | ?????????????????????????????????????????????????? | | ?????????????????????????????????????????????????? | | ?????????????????????????????????????????????????? | | ????????????????????????###??????????????????????? | | ???????????????????????## ##?????????????????????? | | ???????????????????????# #?????????????????????? | | ???????????????????????# @ #?????????????????????? | | ??????????????????????## #?????????????????????? | | ??????????????????????# #?????????????????????? | | ??????????????????????# ##?????????????????????? | | ??????????????????????## #?????????????????????? | | ??????????????????????# #?????????????????????? | | ??????????????????????# ##?????????????????????? | | ??????????????????????# < #?????????????????????? | | ??????????????????????# ##?????????????????????? | | ??????????????????????## #??????????????????????? | | ???????????????????????####??????????????????????? | | ?????????????????????????????????????????????????? | | ?????????????????????????????????????????????????? | | ?????????????????????????????????????????????????? | | ?????????????????????????????????????????????????? | | ?????????????????????????????????????????????????? | | ?????????????????????????????????????????????????? | | ?????????????????????????????????????????????????? | | ?????????????????????????????????????????????????? | | ?????????????????????????????????????????????????? | | ?????????????????????????????????????????????????? | | ?????????????????????????????????????????????????? | | ?????????????????????????????????????????????????? | | ?????????????????????????????????????????????????? | | ?????????????????????????????????????????????????? | +----------------------------------------------------+ Best States ------------- Heat Dissipation 52 Energy Generation 49 Energy Capacity 600 Matter Stores 300 Matter Capacity 300 Sight Range 16 Robot Scan Range 30 Terrain Scan Range 30 Terrain Scan Density 1010 ECM Strength 5 Jamming Range 16 Armor Coverage 800 Propulsion Shielding 90 Utility Shielding 90 Melee Speed Boost 50 Phase Shifting 20 Evasion (%) 98 Melee Accuracy 36 Armor Integrity Analysis 90 Offensive Hacking 68 Defensive Hacking 32 Item Schematics ----------------- Lgt. Ion Engine | -10/Materials | Hacked Grenade Launcher | -10/Materials | Hacked Imp. Flight Unit | -8/Materials | Hacked Lgt. Deuterium Engine | -8/Storage | Hacked Adv. ECM Suite | -7/Factory | Hacked Hacking Suite | -7/Factory | Hacked Field Propulsion Array | -7/Factory | Scanalyzed Adv. Plasma Cannon | -7/Factory | Scanalyzed Adv. System Shield | -7/Factory | Scanalyzed Imp. Hacking Suite | -6/Factory | Scanalyzed Mni. Smartbomb Launcher | -6/Factory | Hacked Exp. Sensor Array | -6/Factory | Hacked Armor Integrity Analyzer | -6/Factory | Extracted Imp. Deuterium Engine | -6/Factory | Extracted Med. Treads | -6/Factory | Extracted Com. Wheel | -6/Factory | Extracted Adv. Treads | -6/Factory | Extracted Power Amplifier | -6/Factory | Extracted Mic. Fission Core | -6/Factory | Hacked Impulse Thruster Array | -6/Factory | Scanalyzed Lrg. Storage Unit | -6/Factory | Hacked Adv. Hacking Suite | -6/Factory | Hacked Imp. Light Armor Plating | -6/Factory | Hacked Cld. Plasma Cannon | -6/Factory | Hacked Adv. Actuator Array | -6/Factory | Hacked Exp. Signal Interpreter | -6/Factory | Hacked Nova Cannon | -5/Factory | Hacked Adv. Transmission Jammer | -5/Factory | Hacked Adv. Particle Charger | -5/Factory | Hacked Plasma Lance | -5/Factory | Hacked Exp. Terrain Scan Processor | -5/Factory | Hacked Exp. Terrain Scanner | -5/Factory | Hacked Mni. Fusion Reactor | -5/Factory | Hacked Exp. Melee Analysis Suite | -5/Factory | Hacked Exp. System Shield | -5/Factory | Hacked Diametric Drive | -4/Factory | Scanalyzed Exp. Utility Shielding | -4/Factory | Hacked Exp. Propulsion Shielding | -4/Factory | Hacked Assault Drone Bay | -4/Zhirov | Free Exp. Heat Sink | -4/Zhirov | Free Exp. Optical Array | -4/Zhirov | Free Imp. Arc Thrower | -4/Zhirov | Free Adv. Reaction Control System | -3/Armory | Hacked Exp. Q-thruster | -2/Research | Hacked Femtoactuators | -2/Research | Hacked Exp. Force Field | -2/Research | Scanalyzed Exp. ECM Suite | -1/Access | Hacked Powered Armor | -1/Access | Hacked Exp. Armor Integrity Analyzer | -1/Access | Hacked Energy Well | -1/Access | Hacked Exp. Energy Well | -1/Access | Hacked Exp. Phase Shifter | -1/Access | Hacked Robot Schematics ------------------ None Fabricated ------------ Imp. Flight Unit | x1 | -7/Factory Imp. Flight Unit | x1 | -7/Factory Hacking Suite | x1 | -7/Factory Hacking Suite | x1 | -7/Factory Hacking Suite | x1 | -7/Factory Adv. System Shield | x1 | -6/Factory Imp. Hacking Suite | x1 | -6/Factory Adv. System Shield | x1 | -6/Factory Imp. Hacking Suite | x1 | -6/Factory Adv. Plasma Cannon | x2 | -6/Factory Grenade Launcher | x1 | -6/Factory Field Propulsion Array | x2 | -6/Factory Mic. Fission Core | x2 | -6/Factory Mni. Smartbomb Launcher | x1 | -6/Factory Exp. Sensor Array | x1 | -6/Factory Impulse Thruster Array | x1 | -6/Factory Lrg. Storage Unit | x1 | -5/Factory Adv. Hacking Suite | x1 | -5/Factory Adv. Transmission Jammer | x1 | -5/Factory Adv. Hacking Suite | x1 | -5/Factory Exp. Signal Interpreter | x1 | -5/Factory Adv. Hacking Suite | x1 | -5/Factory Lrg. Storage Unit | x1 | -5/Factory Adv. Hacking Suite | x1 | -5/Factory Lrg. Storage Unit | x1 | -5/Factory Plasma Lance | x1 | -5/Factory Exp. System Shield | x1 | -4/Factory Plasma Lance | x1 | -4/Factory Impulse Thruster Array | x1 | -4/Factory Mni. Fusion Reactor | x1 | -4/Factory Mni. Fusion Reactor | x1 | -4/Factory Exp. Utility Shielding | x1 | -3/Research Adv. Hacking Suite | x1 | -3/Armory Adv. Hacking Suite | x1 | -3/Armory Exp. System Shield | x1 | -3/Armory Exp. Terrain Scanner | x1 | -3/Armory Exp. Melee Analysis Suite | x1 | -3/Armory Exp. Propulsion Shielding | x1 | -3/Armory Exp. Melee Analysis Suite | x1 | -3/Armory Exp. Propulsion Shielding | x1 | -3/Armory Exp. Melee Analysis Suite | x1 | -3/Armory Exp. Terrain Scan Processor | x1 | -3/Armory Femtoactuators | x1 | -2/Research Exp. Q-thruster | x1 | -2/Research Adv. Reaction Control System | x1 | -2/Research Exp. Q-thruster | x1 | -2/Research Exp. Utility Shielding | x1 | -2/Research Powered Armor | x2 | -1/Access Exp. ECM Suite | x1 | -1/Access Exp. Armor Integrity Analyzer | x1 | -1/Access Exp. Phase Shifter | x1 | -1/Access Exp. Force Field | x1 | -1/Access Alien Tech Used ----------------- Transdimensional Reconstructor High-powered Transdimensional Reconstructor Achievements -------------- True Flier Challenges ------------ None Game ------ Seed SwordThiefMinigun Manual? 0 Play Time 08:28:22 Cumulative 453.9 hours Start 2021.02.13 @ 16:14:19 End 2021.02.20 @ 21:18:35 Sessions 3 Manual Loads 0 Difficulty Rogue Special Mode None Game No. 60 Rogue 60 Adventurer 0 Explorer 0 Win Type 1 Total 23 Types 11/5/1/0/2/0/4/0/0 Lore% 88 Gallery% 94 Achievement% 80 Wizard Run 0 Options --------- ASCII 0 Keyboard 0 Movement Numpad Keybinds 0 Fullscreen 2 Font 18/Terminus Map View 76x50 Tactical HUD 1 Map Filters NONE Filters NONE Steam X RUN: 5b7b3307-382b-474e-a88e-57750e817466